[Event "ETCC Open 2023"]
[Site "Budva"]
[Date "2023.11.14"]
[Round "4.38"]
[White "Sarana, Alexey"]
[Black "Subelj, Jan"]
[Result "1-0"]
[ECO "D16"]
[WhiteElo "2669"]
[BlackElo "2513"]
[Annotator "ChessBase"]
[PlyCount "115"]
[EventDate "2023.11.10"]
[EventType "team-tourn"]
[EventCountry "MNE"]
[SourceTitle "playchess.com"]
[Source "ChessBase"]
[SourceQuality "1"]
[WhiteTeam "Serbia"]
[BlackTeam "Slovenia"]
[WhiteTeamCountry "SRB"]
[BlackTeamCountry "SLO"]
[TimeControl "40/5400+30:1800+30"]

1. d4 {[%emt 0:00:05]} d5 {[%emt 0:00:19]} 2. c4 {[%emt 0:00:06]} c6 {[%emt 0:00:26]} 3. Nf3 {[%emt 0:00:05]} Nf6 {[%emt 0:00:11]} 4. Nc3 {[%emt 0:00:04]} dxc4 {[%emt 0:00:27]} 5. a4 {[%emt 0:00:07]} e6 {[%emt 0:00:17]} 6. e3 {[%emt 0:00:06]} c5 {[%emt 0:00:10]} 7. Bxc4 {[%emt 0:00:03]} Nc6 {[%emt 0:01:07]} 8. O-O {[%emt 0:00:08]} cxd4 {[%emt 0:00:26]} 9. exd4 {[%emt 0:00:38]} Be7 {[%emt 0:00:10]} 10. Qe2 {[%emt 0:00:04]} O-O {[%emt 0:00:21]} 11. Rd1 {[%emt 0:00:03]} Nb4 {[%emt 0:06:52]} 12. Bg5 {[%emt 0:00:55]} Bd7 {[%emt 0:02:46]} 13. d5 {[%emt 0:12:22]} exd5 {[%emt 0:06:38]} 14. Nxd5 {[%emt 0:01:44]} Nbxd5 {[%emt 0:01:29]} 15. Bxd5 {[%emt 0:00:03]} Nxd5 {[%emt 0:00:12]} 16. Rxd5 {[%emt 0:00:04]} Bxg5 {[%emt 0:00:11]} 17. Nxg5 {[%emt 0:00:05]} h6 {[%emt 0:00:05]} 18. Qd2 {[%emt 0:07:01]} hxg5 {[%emt 0:00:08]} 19. Rxd7 {[%emt 0:00:04]} Qf6 {[%emt 0:00:18]} 20. Rd1 {[%emt 0:05:34]} b6 {[%emt 0:13:54]} 21. Rd6 {[%emt 0:11:47]} Qf4 {[%emt 0:05:41]} 22. Qxf4 {[%emt 0:02:44]} gxf4 {[%emt 0:00:07]} 23. R6d4 {[%emt 0:00:31]} f3 {[%emt 0:16:00]} 24. g3 {[%emt 0:02:04]} Rac8 {[%emt 0:05:49]} 25. R4d3 {[%emt 0:00:28]} b5 {[%emt 0:10:35]} 26. a5 {[%emt 0:05:32]} Rc2 {[%emt 0:00:34]} 27. Rb1 {[%emt 0:02:01]} Rfc8 {[%emt 0:01:40]} 28. Rxf3 {[%emt 0:00:39]} Rc1+ {[%emt 0:02:08]} 29. Rxc1 {[%emt 0:00:02]} Rxc1+ {[%emt 0:00:07]} 30. Kg2 {[%emt 0:00:04]} Rb1 {[%emt 0:00:10]} 31. Rb3 {[%emt 0:03:19]} a6 {[%emt 0:00:07]} 32. Kf3 {[%emt 0:00:25]} Rc1 {[%emt 0:11:19]} 33. Rd3 {[%emt 0:25:08]} Rc2 {[%emt 0:02:14]} 34. b3 {[%emt 0:00:05]} b4 {[%emt 0:00:19]} 35. Ke4 {[%emt 0:03:04]} Rxf2 {[%emt 0:01:03]} 36. Rd6 {[%emt 0:00:11]} Rxh2 {[%emt 0:01:59]} 37. Rxa6 {[%emt 0:00:24]} Rb2 {[%emt 0:00:23]} 38. Rb6 {[%emt 0:00:31]} Rxb3 {[%emt 0:00:05]} 39. a6 {[%emt 0:00:06]} Ra3 {[%emt 0:00:54]} 40. Kd5 {[%emt 0:00:23]} Kh7 {[%emt 0:02:48]} 41. Kc6 {[%emt 0:33:09]} Rxg3 {[%emt 0:32:18]} 42. a7 {[%emt 0:00:07]} Ra3 {[%emt 0:00:10]} 43. Kb7 {[%emt 0:00:02]} b3 {[%emt 0:04:00]} 44. a8=Q {[%emt 0:00:28]} Rxa8 {[%emt 0:00:05]} 45. Kxa8 {[%emt 0:00:04]} g5 {[%emt 0:01:12]} 46. Kb7 {[%emt 0:00:13]} g4 {[%emt 0:01:27]} 47. Kc6 {[%emt 0:00:24]} Kg6 {[%emt 0:00:05]} 48. Kd5+ {[%emt 0:00:05]} Kf5 {[%emt 0:00:04]} 49. Kd4 {[%emt 0:00:05]} Kf4 {[%emt 0:00:22]} 50. Rf6+ {[%emt 0:05:52]} Kg3 {[%emt 0:01:49]} 51. Ke3 {[%emt 0:00:05]} b2 {[%emt 0:00:00]} 52. Rb6 {[%emt 0:00:00]} f5 {[%emt 0:00:00]} 53. Rxb2 {[%emt 0:00:00]} f4+ {[%emt 0:00:00]} 54. Ke4 {[%emt 0:00:00]} f3 {[%emt 0:00:00]} 55. Ke3 {[%emt 0:00:00]} Kh3 {[%emt 0:00:00]} 56. Kf4 {[%emt 0:00:00]} f2 {[%emt 0:00:00]} 57. Rxf2 {[%emt 0:00:00]} g3 {[%emt 0:00:00]} 58. Rf3 {[%emt 0:00:00]} 1-0

[Event "ETCC Open 2023"]
[Site "Budva"]
[Date "2023.11.14"]
[Round "4.39"]
[White "Sebenik, Matej"]
[Black "Indjic, Aleksandar"]
[Result "0-1"]
[ECO "D35"]
[WhiteElo "2531"]
[BlackElo "2601"]
[Annotator "ChessBase"]
[PlyCount "136"]
[EventDate "2023.11.10"]
[EventType "team-tourn"]
[EventCountry "MNE"]
[SourceTitle "playchess.com"]
[Source "ChessBase"]
[SourceQuality "1"]
[WhiteTeam "Slovenia"]
[BlackTeam "Serbia"]
[WhiteTeamCountry "SLO"]
[BlackTeamCountry "SRB"]
[TimeControl "40/5400+30:1800+30"]

1. Nf3 {[%emt 0:00:06]} d5 {[%emt 0:01:19]} 2. d4 {[%emt 0:00:11]} Bf5 {[%emt 0:00:48]} 3. c4 {[%emt 0:00:11]} e6 {[%emt 0:00:20]} 4. Nc3 {[%emt 0:00:15]} Nf6 {[%emt 0:00:41]} 5. cxd5 {[%emt 0:06:34]} exd5 {[%emt 0:00:14]} 6. Bg5 {[%emt 0:00:05]} c6 {[%emt 0:01:33]} 7. Bxf6 {[%emt 0:09:14]} Qxf6 {[%emt 0:00:12]} 8. e3 {[%emt 0:01:48]} Bd6 {[%emt 0:00:40]} 9. Bd3 {[%emt 0:00:25]} Nd7 {[%emt 0:02:11]} 10. O-O {[%emt 0:05:28]} Bg4 {[%emt 0:10:15]} 11. h3 {[%emt 0:01:05]} Bh5 {[%emt 0:01:00]} 12. Be2 {[%emt 0:14:56]} Qe7 {[%emt 0:00:23]} 13. Re1 {[%emt 0:00:26]} f5 {[%emt 0:00:21]} 14. Qb3 {[%emt 0:02:18]} Rb8 {[%emt 0:03:05]} 15. Nd2 {[%emt 0:07:01]} Bf7 {[%emt 0:03:01]} 16. Bd3 {[%emt 0:03:18]} Be6 {[%emt 0:00:15]} 17. Qc2 {[%emt 0:11:29]} O-O {[%emt 0:00:11]} 18. f4 {[%emt 0:00:02]} g5 {[%emt 0:04:30]} 19. fxg5 {[%emt 0:06:18]} Qxg5 {[%emt 0:00:21]} 20. Nf3 {[%emt 0:00:02]} Qh6 {[%emt 0:00:23]} 21. Qf2 {[%emt 0:00:04]} Kh8 {[%emt 0:00:17]} 22. Ne2 {[%emt 0:04:11]} Nf6 {[%emt 0:01:35]} 23. Nf4 {[%emt 0:00:29]} Ne4 {[%emt 0:03:07]} 24. Qh4 {[%emt 0:00:46]} Qxh4 {[%emt 0:00:37]} 25. Nxh4 {[%emt 0:00:04]} Bd7 {[%emt 0:00:17]} 26. a3 {[%emt 0:02:41]} Rg8 {[%emt 0:05:21]} 27. Rf1 {[%emt 0:10:17]} Rbe8 {[%emt 0:05:48]} 28. Rae1 {[%emt 0:04:53]} Re7 {[%emt 0:03:18]} 29. Kh2 {[%emt 0:08:31]} Ng3 {[%emt 0:03:14]} 30. Rf3 {[%emt 0:00:52]} Nh5 {[%emt 0:00:09]} 31. Ref1 {[%emt 0:01:06]} Reg7 {[%emt 0:07:15]} 32. R1f2 {[%emt 0:00:24]} Ng3 {[%emt 0:00:52]} 33. Kg1 {[%emt 0:00:53]} Be7 {[%emt 0:00:36]} 34. Rxg3 {[%emt 0:00:36]} Rxg3 {[%emt 0:03:31]} 35. Nf3 {[%emt 0:00:04]} Bd6 {[%emt 0:00:38]} 36. Nh5 {[%emt 0:00:05]} R3g6 {[%emt 0:00:43]} 37. Nf4 {[%emt 0:01:16]} Rf6 {[%emt 0:00:40]} 38. Ne5 {[%emt 0:00:32]} Bxe5 {[%emt 0:00:19]} 39. dxe5 {[%emt 0:00:03]} Rh6 {[%emt 0:00:08]} 40. Bc2 {[%emt 0:01:00]} Re8 {[%emt 0:00:27]} 41. Nd3 {[%emt 0:30:02]} Bc8 {[%emt 0:30:29]} 42. b4 {[%emt 0:00:00]} Rh4 {[%emt 0:00:00]} 43. Rf4 {[%emt 0:00:00]} Rh6 {[%emt 0:00:00]} 44. a4 {[%emt 0:00:00]} Rg8 {[%emt 0:00:00]} 45. Kf2 {[%emt 0:00:00]} Re6 {[%emt 0:00:00]} 46. Rh4 {[%emt 0:00:00]} Kg7 {[%emt 0:00:00]} 47. Kf3 {[%emt 0:00:00]} Rh6 {[%emt 0:00:00]} 48. Rf4 {[%emt 0:00:00]} Re8 {[%emt 0:00:00]} 49. Ke2 {[%emt 0:00:00]} b6 {[%emt 0:00:00]} 50. Kd2 {[%emt 0:00:00]} Rg6 {[%emt 0:00:00]} 51. Rf2 {[%emt 0:00:00]} Rg3 {[%emt 0:00:00]} 52. Nf4 {[%emt 0:00:00]} Kh6 {[%emt 0:00:00]} 53. Ne2 {[%emt 0:00:00]} Rgg8 {[%emt 0:00:00]} 54. g4 {[%emt 0:00:00]} fxg4 {[%emt 0:00:00]} 55. hxg4 {[%emt 0:00:00]} Bxg4 {[%emt 0:00:00]} 56. Nf4 {[%emt 0:00:00]} Rg7 {[%emt 0:08:03]} 57. e6 {[%emt 0:00:23]} Kg5 {[%emt 0:00:06]} 58. b5 {[%emt 0:00:33]} cxb5 {[%emt 0:00:43]} 59. axb5 {[%emt 0:00:12]} Bxe6 {[%emt 0:00:53]} 60. Rg2+ {[%emt 0:02:57]} Bg4 {[%emt 0:00:17]} 61. Nxd5 {[%emt 0:00:03]} h5 {[%emt 0:00:30]} 62. e4 {[%emt 0:00:06]} Rf7 {[%emt 0:00:46]} 63. Ke3 {[%emt 0:00:17]} Rf3+ {[%emt 0:02:07]} 64. Kd4 {[%emt 0:00:44]} h4 {[%emt 0:00:15]} 65. e5 {[%emt 0:03:38]} h3 {[%emt 0:00:18]} 66. Rh2 {[%emt 0:00:43]} Kh4 {[%emt 0:01:00]} 67. Be4 {[%emt 0:00:02]} Kg3 {[%emt 0:01:07]} 68. Rh1 {[%emt 0:00:26]} h2 {[%emt 0:00:21]} 0-1

[Event "ETCC Open 2023"]
[Site "Budva"]
[Date "2023.11.14"]
[Round "4.40"]
[White "Markus, Robert"]
[Black "Borisek, Jure"]
[Result "1/2-1/2"]
[ECO "A13"]
[WhiteElo "2582"]
[BlackElo "2568"]
[Annotator "ChessBase"]
[PlyCount "109"]
[EventDate "2023.11.10"]
[EventType "team-tourn"]
[EventCountry "MNE"]
[SourceTitle "playchess.com"]
[Source "ChessBase"]
[SourceQuality "1"]
[WhiteTeam "Serbia"]
[BlackTeam "Slovenia"]
[WhiteTeamCountry "SRB"]
[BlackTeamCountry "SLO"]
[TimeControl "40/5400+30:1800+30"]

1. c4 {[%emt 0:00:09]} e6 {[%emt 0:00:31]} 2. g3 {[%emt 0:00:29]} d5 {[%emt 0:00:10]} 3. Bg2 {[%emt 0:00:07]} Nf6 {[%emt 0:00:07]} 4. Nf3 {[%emt 0:00:12]} d4 {[%emt 0:00:21]} 5. O-O {[%emt 0:06:14]} Nc6 {[%emt 0:00:20]} 6. d3 {[%emt 0:02:29]} Bc5 {[%emt 0:01:14]} 7. Na3 {[%emt 0:08:32]} O-O {[%emt 0:04:45]} 8. Nc2 {[%emt 0:00:06]} a5 {[%emt 0:10:03]} 9. b3 {[%emt 0:08:53]} h6 {[%emt 0:14:03]} 10. a3 {[%emt 0:13:24]} e5 {[%emt 0:00:46]} 11. Rb1 {[%emt 0:00:20]} Re8 {[%emt 0:04:44]} 12. b4 {[%emt 0:02:17]} axb4 {[%emt 0:06:23]} 13. axb4 {[%emt 0:00:06]} Bf8 {[%emt 0:00:03]} 14. b5 {[%emt 0:05:05]} Nb8 {[%emt 0:00:22]} 15. e3 {[%emt 0:00:07]} dxe3 {[%emt 0:00:37]} 16. Nxe3 {[%emt 0:00:06]} Nbd7 {[%emt 0:09:10]} 17. Bb2 {[%emt 0:03:56]} c6 {[%emt 0:05:35]} 18. bxc6 {[%emt 0:06:29]} bxc6 {[%emt 0:00:05]} 19. d4 {[%emt 0:00:06]} e4 {[%emt 0:03:42]} 20. Ne5 {[%emt 0:11:37]} c5 {[%emt 0:01:12]} 21. Nxd7 {[%emt 0:07:09]} Nxd7 {[%emt 0:00:41]} 22. Qc2 {[%emt 0:03:04]} cxd4 {[%emt 0:01:46]} 23. Bxd4 {[%emt 0:00:08]} Nc5 {[%emt 0:02:31]} 24. Rfd1 {[%emt 0:05:10]} Nd3 {[%emt 0:11:21]} 25. Bb6 {[%emt 0:03:10]} Qg5 {[%emt 0:01:38]} 26. Bxe4 {[%emt 0:01:17]} Rxe4 {[%emt 0:00:25]} 27. Qxd3 {[%emt 0:00:05]} Re8 {[%emt 0:07:56]} 28. Rb5 {[%emt 0:06:04]} Qf6 {[%emt 0:03:39]} 29. Bc5 {[%emt 0:05:06]} Bh3 {[%emt 0:05:01]} 30. Bxf8 {[%emt 0:00:26]} Qf3 {[%emt 0:00:53]} 31. Rb2 {[%emt 0:01:58]} Kxf8 {[%emt 0:01:24]} 32. Qd6+ {[%emt 0:00:37]} Kg8 {[%emt 0:00:09]} 33. Qd5 {[%emt 0:00:04]} Qf6 {[%emt 0:01:13]} 34. Rbd2 {[%emt 0:00:10]} Rac8 {[%emt 0:00:54]} 35. Rd4 {[%emt 0:01:26]} Be6 {[%emt 0:02:11]} 36. Qd6 {[%emt 0:00:04]} Qf3 {[%emt 0:00:19]} 37. Qf4 {[%emt 0:01:05]} Qe2 {[%emt 0:00:20]} 38. g4 {[%emt 0:00:39]} Qa2 {[%emt 0:01:13]} 39. h4 {[%emt 0:00:04]} Qa5 {[%emt 0:01:00]} 40. Nd5 {[%emt 0:01:16]} Qc5 {[%emt 0:00:47]} 41. g5 {[%emt 0:05:09]} Bxd5 {[%emt 0:01:06]} 42. cxd5 {[%emt 0:00:07]} hxg5 {[%emt 0:00:06]} 43. hxg5 {[%emt 0:00:12]} Rcd8 {[%emt 0:00:06]} 44. Kg2 {[%emt 0:03:32]} Rd6 {[%emt 0:02:51]} 45. Rc1 {[%emt 0:08:02]} Qb6 {[%emt 0:01:09]} 46. Rc3 {[%emt 0:05:09]} Rg6 {[%emt 0:05:17]} 47. Rg3 {[%emt 0:01:44]} Qd6 {[%emt 0:05:48]} 48. Qd2 {[%emt 0:02:11]} f6 {[%emt 0:01:25]} 49. gxf6 {[%emt 0:01:10]} Rxf6 {[%emt 0:00:30]} 50. Rdg4 {[%emt 0:02:35]} Rf7 {[%emt 0:02:11]} 51. Rg6 {[%emt 0:01:23]} Qe5 {[%emt 0:00:52]} 52. Re3 {[%emt 0:00:43]} Rxf2+ {[%emt 0:00:11]} 53. Qxf2 {[%emt 0:04:14]} Qxe3 {[%emt 0:00:06]} 54. Qxe3 {[%emt 0:00:03]} Rxe3 {[%emt 0:16:18]} 55. Rg3 {[%emt 0:00:02]} 1/2-1/2

[Event "ETCC Open 2023"]
[Site "Budva"]
[Date "2023.11.14"]
[Round "4.41"]
[White "Gretarsson, Hjorvar Steinn"]
[Black "Erdos, Viktor"]
[Result "1/2-1/2"]
[ECO "D35"]
[WhiteElo "2518"]
[BlackElo "2557"]
[Annotator "ChessBase"]
[PlyCount "125"]
[EventDate "2023.11.10"]
[EventType "team-tourn"]
[EventCountry "MNE"]
[SourceTitle "playchess.com"]
[Source "ChessBase"]
[SourceQuality "1"]
[WhiteTeam "Iceland"]
[BlackTeam "Hungary"]
[WhiteTeamCountry "ISL"]
[BlackTeamCountry "HUN"]
[TimeControl "40/5400+30:1800+30"]

1. c4 {[%emt 0:00:03]} e6 {[%emt 0:03:59]} 2. Nc3 {[%emt 0:00:08]} d5 {[%emt 0:00:06]} 3. d4 {[%emt 0:00:06]} Nf6 {[%emt 0:00:08]} 4. cxd5 {[%emt 0:00:06]} exd5 {[%emt 0:00:05]} 5. Bg5 {[%emt 0:00:05]} Bb4 {[%emt 0:00:09]} 6. e3 {[%emt 0:01:38]} h6 {[%emt 0:00:06]} 7. Bh4 {[%emt 0:00:49]} g5 {[%emt 0:00:09]} 8. Bg3 {[%emt 1:31:35]} Ne4 {[%emt 0:00:05]} 9. Qc2 {[%emt 0:00:00]} h5 {[%emt 0:01:59]} 10. Bd3 {[%emt 0:00:00]} h4 {[%emt 0:04:33]} 11. Be5 {[%emt 0:00:00]} f6 {[%emt 0:00:21]} 12. Bxe4 {[%emt 0:00:00]} dxe4 {[%emt 0:00:18]} 13. d5 {[%emt 0:00:00]} Na6 {[%emt 0:11:09]} 14. Bd4 {[%emt 0:00:00]} Qxd5 {[%emt 0:23:25]} 15. Nge2 {[%emt 0:00:00]} Qc6 {[%emt 0:30:15]} 16. O-O {[%emt 0:00:00]} Be7 {[%emt 0:00:16]} 17. f4 {[%emt 0:00:00]} g4 {[%emt 0:04:45]} 18. f5 {[%emt 0:00:00]} Bd7 {[%emt 0:05:42]} 19. a3 {[%emt 0:00:00]} Nc5 {[%emt 0:02:32]} 20. Nf4 {[%emt 0:00:00]} Nd3 {[%emt 0:04:16]} 21. Ng6 {[%emt 0:00:00]} Rh7 {[%emt 0:00:33]} 22. Qe2 {[%emt 0:01:57]} g3 {[%emt 0:01:56]} 23. Nxe7 {[%emt 0:02:00]} Kxe7 {[%emt 0:02:44]} 24. Qg4 {[%emt 0:00:54]} Rah8 {[%emt 0:01:12]} 25. Nxe4 {[%emt 0:01:49]} Nf2 {[%emt 0:00:04]} 26. Nxf2 {[%emt 0:01:18]} gxf2+ {[%emt 0:00:02]} 27. Rxf2 {[%emt 0:00:18]} h3 {[%emt 0:00:19]} 28. e4 {[%emt 0:00:43]} Kd8 {[%emt 0:01:04]} 29. Rd1 {[%emt 0:00:56]} Kc8 {[%emt 0:00:11]} 30. g3 {[%emt 0:00:33]} Re8 {[%emt 0:01:33]} 31. Bc3 {[%emt 0:00:26]} Qxe4 {[%emt 0:00:21]} 32. Qxe4 {[%emt 0:00:09]} Rxe4 {[%emt 0:00:04]} 33. Bxf6 {[%emt 0:00:27]} Rf7 {[%emt 0:01:07]} 34. Bh4 {[%emt 0:00:25]} c5 {[%emt 0:01:15]} 35. f6 {[%emt 0:00:25]} Kc7 {[%emt 0:00:43]} 36. Bg5 {[%emt 0:00:54]} Bc6 {[%emt 0:00:32]} 37. Bf4+ {[%emt 0:00:23]} Kb6 {[%emt 0:00:17]} 38. Bd6 {[%emt 0:00:21]} Kb5 {[%emt 0:00:42]} 39. Be7 {[%emt 0:00:41]} b6 {[%emt 0:00:07]} 40. Rc1 {[%emt 0:00:34]} Ka4 {[%emt 0:00:49]} 41. Rd1 {[%emt 0:08:29]} Bb5 {[%emt 0:13:48]} 42. Rf4 {[%emt 0:07:46]} Rxf4 {[%emt 0:00:15]} 43. gxf4 {[%emt 0:00:04]} Kb3 {[%emt 0:00:19]} 44. Rd2 {[%emt 0:00:22]} Bc4 {[%emt 0:04:39]} 45. Kf2 {[%emt 0:00:28]} Rh7 {[%emt 0:01:02]} 46. Ke3 {[%emt 0:06:37]} Rh6 {[%emt 0:09:04]} 47. f5 {[%emt 0:02:29]} Rh8 {[%emt 0:00:52]} 48. Ke4 {[%emt 0:03:30]} Rg8 {[%emt 0:00:20]} 49. Rd3+ {[%emt 0:01:50]} Kxb2 {[%emt 0:03:44]} 50. Rxh3 {[%emt 0:00:33]} Rg1 {[%emt 0:00:39]} 51. a4 {[%emt 0:02:49]} Ra1 {[%emt 0:00:47]} 52. Ke5 {[%emt 0:00:23]} Re1+ {[%emt 0:00:27]} 53. Kd6 {[%emt 0:00:10]} Rf1 {[%emt 0:00:10]} 54. Rh5 {[%emt 0:01:36]} Bb3 {[%emt 0:00:51]} 55. Kc7 {[%emt 0:00:23]} Bd5 {[%emt 0:00:11]} 56. Kb8 {[%emt 0:00:36]} c4 {[%emt 0:00:13]} 57. Bd6 {[%emt 0:00:39]} c3 {[%emt 0:00:16]} 58. Be5 {[%emt 0:00:21]} Re1 {[%emt 0:00:03]} 59. Bxc3+ {[%emt 0:00:10]} Kxc3 {[%emt 0:00:02]} 60. Kxa7 {[%emt 0:00:06]} Kd4 {[%emt 0:00:43]} 61. Kxb6 {[%emt 0:01:14]} Ke5 {[%emt 0:00:23]} 62. Rh6 {[%emt 0:00:26]} Rf1 {[%emt 0:01:01]} 63. a5 {[%emt 0:00:32]} 1/2-1/2

[Event "ETCC Open 2023"]
[Site "Budva"]
[Date "2023.11.14"]
[Round "4.42"]
[White "Banusz, Tamas"]
[Black "Stefansson, Hannes"]
[Result "1-0"]
[ECO "E08"]
[WhiteElo "2609"]
[BlackElo "2518"]
[Annotator "ChessBase"]
[PlyCount "93"]
[EventDate "2023.11.10"]
[EventType "team-tourn"]
[EventCountry "MNE"]
[SourceTitle "playchess.com"]
[Source "ChessBase"]
[SourceQuality "1"]
[WhiteTeam "Hungary"]
[BlackTeam "Iceland"]
[WhiteTeamCountry "HUN"]
[BlackTeamCountry "ISL"]
[TimeControl "40/5400+30:1800+30"]

1. Nf3 {[%emt 0:00:09]} d5 {[%emt 0:00:26]} 2. d4 {[%emt 0:00:17]} Nf6 {[%emt 0:00:40]} 3. c4 {[%emt 0:00:05]} e6 {[%emt 0:00:34]} 4. g3 {[%emt 0:00:06]} Bb4+ {[%emt 0:01:10]} 5. Bd2 {[%emt 0:00:08]} Be7 {[%emt 0:00:47]} 6. Bg2 {[%emt 0:00:11]} O-O {[%emt 0:01:25]} 7. O-O {[%emt 0:01:04]} c6 {[%emt 0:02:22]} 8. Qc2 {[%emt 0:00:34]} Nbd7 {[%emt 0:02:20]} 9. Bf4 {[%emt 0:00:46]} b6 {[%emt 0:02:39]} 10. Nbd2 {[%emt 0:01:05]} Bb7 {[%emt 0:04:21]} 11. e4 {[%emt 0:01:37]} Nh5 {[%emt 0:01:04]} 12. Be3 {[%emt 0:00:47]} Nhf6 {[%emt 0:00:32]} 13. h4 {[%emt 0:01:22]} h6 {[%emt 0:00:56]} 14. Rfd1 {[%emt 0:08:26]} Rc8 {[%emt 0:05:46]} 15. Rac1 {[%emt 0:11:35]} c5 {[%emt 0:07:07]} 16. exd5 {[%emt 0:03:35]} exd5 {[%emt 0:00:36]} 17. Qf5 {[%emt 0:03:45]} Qc7 {[%emt 0:18:29]} 18. dxc5 {[%emt 0:06:39]} bxc5 {[%emt 0:02:30]} 19. Bf4 {[%emt 0:06:55]} Bd6 {[%emt 0:01:21]} 20. Bxd6 {[%emt 0:01:11]} Qxd6 {[%emt 0:00:05]} 21. cxd5 {[%emt 0:02:04]} Qxd5 {[%emt 0:01:51]} 22. Qxd5 {[%emt 0:07:23]} Bxd5 {[%emt 0:00:08]} 23. Nc4 {[%emt 0:00:25]} Nb6 {[%emt 0:04:35]} 24. Nfe5 {[%emt 0:00:29]} Rfd8 {[%emt 0:01:08]} 25. Bxd5 {[%emt 0:02:21]} Nfxd5 {[%emt 0:01:33]} 26. Na5 {[%emt 0:00:56]} Re8 {[%emt 0:04:35]} 27. Nec6 {[%emt 0:05:54]} c4 {[%emt 0:07:02]} 28. Nxa7 {[%emt 0:06:25]} Ra8 {[%emt 0:04:43]} 29. N7c6 {[%emt 0:00:46]} Re2 {[%emt 0:00:52]} 30. Nxc4 {[%emt 0:01:55]} Rxa2 {[%emt 0:00:47]} 31. Nd4 {[%emt 0:03:18]} Re8 {[%emt 0:00:59]} 32. Nxb6 {[%emt 0:02:32]} Nxb6 {[%emt 0:00:08]} 33. b3 {[%emt 0:01:20]} Nd5 {[%emt 0:03:02]} 34. Rc2 {[%emt 0:04:53]} Rxc2 {[%emt 0:02:28]} 35. Nxc2 {[%emt 0:00:02]} Re2 {[%emt 0:01:25]} 36. Rxd5 {[%emt 0:05:35]} Rxc2 {[%emt 0:01:02]} 37. Rd3 {[%emt 0:01:46]} Kh7 {[%emt 0:03:18]} 38. Kg2 {[%emt 0:02:51]} g5 {[%emt 0:00:41]} 39. hxg5 {[%emt 0:04:38]} hxg5 {[%emt 0:00:06]} 40. Kf3 {[%emt 0:02:24]} Kg6 {[%emt 0:05:52]} 41. Ke3 {[%emt 0:11:11]} g4 {[%emt 0:02:34]} 42. b4 {[%emt 0:01:12]} Rb2 {[%emt 0:08:42]} 43. Rd4 {[%emt 0:00:35]} Rb3+ {[%emt 0:00:43]} 44. Ke4 {[%emt 0:03:05]} Rb2 {[%emt 0:07:17]} 45. Kd5 {[%emt 0:01:18]} Rxf2 {[%emt 0:00:18]} 46. Rxg4+ {[%emt 0:00:06]} Kh5 {[%emt 0:00:15]} 47. Rf4 {[%emt 0:01:40]} 1-0

[Event "ETCC Open 2023"]
[Site "Budva"]
[Date "2023.11.14"]
[Round "4.43"]
[White "Stefansson, Vignir Vatnar"]
[Black "Kozak, Adam"]
[Result "1/2-1/2"]
[ECO "E32"]
[WhiteElo "2483"]
[BlackElo "2578"]
[Annotator "ChessBase"]
[PlyCount "83"]
[EventDate "2023.11.10"]
[EventType "team-tourn"]
[EventCountry "MNE"]
[SourceTitle "playchess.com"]
[Source "ChessBase"]
[SourceQuality "1"]
[WhiteTeam "Iceland"]
[BlackTeam "Hungary"]
[WhiteTeamCountry "ISL"]
[BlackTeamCountry "HUN"]
[TimeControl "40/5400+30:1800+30"]

1. d4 {[%emt 0:00:05]} Nf6 {[%emt 0:01:39]} 2. c4 {[%emt 0:00:12]} e6 {[%emt 0:00:07]} 3. Nc3 {[%emt 0:00:09]} Bb4 {[%emt 0:00:22]} 4. Qc2 {[%emt 0:00:09]} b6 {[%emt 0:03:24]} 5. e4 {[%emt 0:00:13]} c5 {[%emt 0:00:07]} 6. d5 {[%emt 0:00:05]} Qe7 {[%emt 0:00:35]} 7. Nge2 {[%emt 0:00:08]} d6 {[%emt 0:03:39]} 8. a3 {[%emt 0:04:19]} Bxc3+ {[%emt 0:01:00]} 9. Nxc3 {[%emt 0:00:08]} O-O {[%emt 0:08:13]} 10. Be2 {[%emt 0:10:02]} Nbd7 {[%emt 0:06:27]} 11. h3 {[%emt 0:06:20]} Re8 {[%emt 0:04:16]} 12. Bf4 {[%emt 0:01:58]} Nf8 {[%emt 0:04:04]} 13. Be3 {[%emt 0:24:54]} Bd7 {[%emt 0:15:22]} 14. O-O-O {[%emt 0:08:19]} e5 {[%emt 0:01:08]} 15. g3 {[%emt 0:01:10]} a6 {[%emt 0:06:47]} 16. a4 {[%emt 0:00:16]} Reb8 {[%emt 0:02:32]} 17. b3 {[%emt 0:01:11]} Ne8 {[%emt 0:03:15]} 18. f4 {[%emt 0:00:51]} Nc7 {[%emt 0:08:06]} 19. fxe5 {[%emt 0:06:27]} Qxe5 {[%emt 0:01:49]} 20. Bf4 {[%emt 0:00:04]} Qf6 {[%emt 0:05:01]} 21. e5 {[%emt 0:07:30]} dxe5 {[%emt 0:00:07]} 22. Ne4 {[%emt 0:00:38]} Qf5 {[%emt 0:01:11]} 23. Bg4 {[%emt 0:01:33]} Qg6 {[%emt 0:00:14]} 24. Bxe5 {[%emt 0:00:06]} Re8 {[%emt 0:03:16]} 25. Nf6+ {[%emt 0:06:26]} gxf6 {[%emt 0:00:06]} 26. Bxc7 {[%emt 0:01:07]} Rac8 {[%emt 0:13:20]} 27. Bxd7 {[%emt 0:04:54]} Nxd7 {[%emt 0:00:19]} 28. Bf4 {[%emt 0:00:54]} Re4 {[%emt 0:01:27]} 29. Rhe1 {[%emt 0:00:36]} f5 {[%emt 0:00:42]} 30. Rxe4 {[%emt 0:02:28]} fxe4 {[%emt 0:00:02]} 31. Re1 {[%emt 0:00:16]} Re8 {[%emt 0:00:34]} 32. Qc3 {[%emt 0:01:10]} Qf5 {[%emt 0:00:48]} 33. h4 {[%emt 0:01:22]} a5 {[%emt 0:01:59]} 34. Qe3 {[%emt 0:01:41]} h5 {[%emt 0:00:53]} 35. Re2 {[%emt 0:01:13]} Qf6 {[%emt 0:02:04]} 36. Kb1 {[%emt 0:00:16]} Qg6 {[%emt 0:00:24]} 37. Bc7 {[%emt 0:01:27]} f5 {[%emt 0:01:20]} 38. Qc3 {[%emt 0:03:45]} Qg7 {[%emt 0:01:40]} 39. Qxg7+ {[%emt 0:00:21]} Kxg7 {[%emt 0:00:02]} 40. Kc2 {[%emt 0:00:25]} Kf6 {[%emt 0:00:50]} 41. Kd2 {[%emt 0:30:51]} Rg8 {[%emt 0:06:37]} 42. Bf4 {[%emt 0:00:00]} 1/2-1/2